[Event "Karel Janecek Open 2025"]
[Site "Prague"]
[Date "2025.03.04"]
[Round "6.2"]
[White "Raja Rithvik R"]
[Black "Zhao, Yuanhe"]
[Result "1/2-1/2"]
[Annotator "TA"]
[ECO "B30"]
[WhiteElo "2522"]
[BlackElo "2466"]
[PlyCount "59"]
[EventDate "2025.02.21"]
[EventType "swiss"]
[EventCountry "CZE"]
[SourceTitle "playchess.com"]
[Source "ChessBase"]
[SourceQuality "1"]
[TimeControl "40/5400+30:1800+30"]

{[%evp 10,59,19,20,22,28,39,27,25,37,67,81,71,43,78,87,62,57,74,66,88,35,97,64,64,64,102,60,61,58,66,29,24,30,27,27,31,38,52,11,16,17,29,0,0,0,0,0,0,0,0,-4]} 1. e4 {[%emt 0:00:14]} c5 {[%emt 0:00:43]} 2. Nf3 {[%emt 0:00:05]} Nc6 {[%emt 0:00:44]} 3. Bb5 {[%emt 0:00:06]} e6 {[%emt 0:00:40]} 4. O-O {[%emt 0:00:15]} Nge7 {[%emt 0:00:09]} 5. d4 {[%emt 0:00:09]} cxd4 {[%emt 0:03:15]} 6. Nxd4 {[%emt 0:00:05]} Nxd4 {[%emt 0:02:44] B30: Sicilian: 2...Nc6 3 Bb5, lines without ...g6.} 7. Qxd4 {[%emt 0:00:06]} a6 {[%emt 0:00:09]} 8. Be2 {[%emt 0:01:46]} Nc6 {[%emt 0:00:10] White has an edge.} 9. Qc3 {[%emt 0:00:39]} Qf6 {[%emt 0:06:37] Repels Bf4} 10. Qxf6 {[%emt 0:04:56]} gxf6 {[%emt 0:00:06]} 11. Be3 {[%emt 0:01:05] Prevents Bc5.} b6 {[%emt 0:07:33]} 12. Nd2 $146 {[%emt 0:05:57][%cal Of1d1,Bb1d2,Bd2c4,Bc4e3][%mdl 32]} (12. c3 Bc5 13. Bh6 Bf8 14. Bf4 Bb7 15. Nd2 Ne5 16. Rfd1 Rg8 17. f3 d5 18. exd5 Bxd5 {0-1 Benjamin,J (2524)-Christiansen,L (2574) USA-ch Seniors 50 2019 (9)}) 12... Bc5 {[%emt 0:00:50]} 13. Nc4 {[%emt 0:00:46]} Bxe3 $1 {[%emt 0:08:50]} 14. Nxe3 {[%emt 0:09:40]} Ke7 {[%emt 0:00:15]} 15. c3 {[%emt 0:09:21]} (15. Rfd1 $16) 15... Bb7 {[%emt 0:02:09]} (15... a5 $1 $14) 16. a4 {[%emt 0:00:19]} Rab8 {[%emt 0:04:52]} 17. Rfd1 {[%emt 0:01:29]} Rhg8 {[%emt 0:04:20]} 18. f4 {[%emt 0:05:28] White is more active.} Na7 {[%emt 0:02:18]} 19. Rd4 {[%emt 0:03:43]} b5 {[%emt 0:07:15]} 20. axb5 {[%emt 0:22:25]} Nxb5 {[%emt 0:00:07]} 21. Rb4 {[%emt 0:00:18][%cal Oe2d3]} Nc7 {[%emt 0:00:28]} 22. Bd3 {[%emt 0:00:46]} Bc6 {[%emt 0:03:32]} 23. Rxb8 {[%emt 0:02:45]} Rxb8 {[%emt 0:00:06]} 24. Ra2 {[%emt 0:00:06][%cal Ob2b4]} a5 {[%emt 0:05:18]} 25. Nc2 {[%emt 0:05:19][%cal Oc2d4]} Bb5 {[%emt 0:03:09]} 26. Bxb5 {[%emt 0:01:01]} Nxb5 {[%emt 0:00:04] The position is equal.} 27. Ne3 {[%emt 0:01:15]} Nd6 {[%emt 0:06:27]} 28. e5 {[%emt 0:00:04]} fxe5 {[%emt 0:00:18]} 29. fxe5 {[%emt 0:00:04]} Nb7 {[%emt 0:00:11]} 30. Nc4 {[%emt 0:08:09] Weighted Error Value: White=0.13 (very precise) /Black=0.09 (flawless)   Mistake:       	White=1     	Black=1      Inaccurate:     	White=6     	Black=3      OK:         	White=10    	Black=12     Strong:       	---       	Black=1} 1/2-1/2

[Event "Karel Janecek Open 2025"]
[Site "Prague"]
[Date "2025.03.04"]
[Round "6.3"]
[White "Sofronie, Iulian"]
[Black "Beerdsen, Thomas"]
[Result "0-1"]
[Annotator "TA"]
[ECO "A41"]
[WhiteElo "2380"]
[BlackElo "2511"]
[PlyCount "106"]
[EventDate "2025.02.21"]
[EventType "swiss"]
[EventCountry "CZE"]
[SourceTitle "playchess.com"]
[Source "ChessBase"]
[SourceQuality "1"]
[TimeControl "40/5400+30:1800+30"]

{[%evp 9,106,29,28,18,16,3,36,21,22,32,33,25,25,25,39,35,33,-23,-14,-23,-7,-14,8,-10,-8,-25,-38,-29,23,5,29,0,-8,-26,-13,-56,-27,-30,-31,-68,-52,-91,-57,-45,-28,-183,-173,-185,-182,-192,-190,-185,-187,-189,-178,-177,-184,-166,-74,-198,-185,-160,-121,-177,-164,-164,-126,-203,-145,-195,-178,-243,-243,-252,-239,-222,-204,-216,-205,-262,-258,-287,-263,-335,-284,-322,-276,-315,-310,-291,-279,-325,-304,-471,-485,-497,-497,-607,-591]} 1. d4 {[%emt 0:00:05]} Nf6 {[%emt 0:02:24]} 2. Bf4 {[%emt 0:00:12]} Nc6 {[%emt 0:00:06]} 3. Nf3 {[%emt 0:00:59]} d6 {[%emt 0:00:19]} 4. h3 {[%emt 0:01:18]} g6 {[%emt 0:00:31]} 5. Nc3 {[%emt 0:00:51]} Bg7 {[%emt 0:04:08]} 6. e4 {[%emt 0:00:12] A41: 1 d4 d6: Tartakower System and Modern Defence.} O-O {[%emt 0:00:48][%cal Oe7e5]} 7. Be2 {[%emt 0:01:47]} a6 {[%emt 0:19:28]} 8. a4 {[%emt 0:02:14] White is slightly better.} Qe8 $146 {[%emt 0:06:24]} (8... Re8 9. e5 Nd7 10. exd6 cxd6 11. O-O b6 12. Be3 Bb7 13. Re1 Rc8 14. Qd2 Na5 {0-1 Sharma,D (2394)-Ismagambetov,A (2523) New Delhi Parsvnath op 7th 2009 (9)}) 9. Be3 {[%emt 0:37:20]} e5 {[%emt 0:05:13]} 10. d5 {[%emt 0:00:26]} Ne7 {[%emt 0:00:51]} 11. Nd2 {[%emt 0:00:14]} Nd7 {[%emt 0:03:03]} 12. g4 {[%emt 0:02:34]} f5 {[%emt 0:04:30]} 13. gxf5 {[%emt 0:01:18]} (13. f3 $14) 13... gxf5 $11 {[%emt 0:00:06]} 14. Bh5 {[%emt 0:00:08]} Qd8 {[%emt 0:03:23]} 15. Bg5 {[%emt 0:01:25]} h6 {[%emt 0:04:27] Black is weak on the light squares} 16. Bh4 {[%emt 0:01:38]} Bf6 {[%emt 0:00:36]} 17. Bxf6 {[%emt 0:00:33]} Nxf6 {[%emt 0:00:14]} 18. Qe2 {[%emt 0:03:18]} f4 {[%emt 0:06:44]} (18... Kh8 $142) 19. O-O-O {[%emt 0:01:37]} Kh7 {[%emt 0:01:11]} 20. Rdg1 {[%emt 0:00:45]} (20. Bg4 Rg8 21. Rhg1 b5 22. Bxc8 Qxc8 23. Rxg8 Kxg8 24. Rg1+) 20... Bd7 {[%emt 0:03:50][%cal Ob7b5]} 21. Nf3 {[%emt 0:01:59][%cal Bd2f3,Bf3h4,Bh4g2][%mdl 32]} Rg8 {[%emt 0:03:09] Prevents h4.} (21... Nxh5 $2 22. Ng5+ Kh8 23. Qxh5 $18) 22. Nh4 {[%emt 0:15:18]} Nxh5 {[%emt 0:01:50]} (22... Rxg1+ {simplifies} 23. Rxg1 Bxh3 24. Rh1 Qd7) 23. Qxh5 {[%emt 0:00:08]} Qe8 {[%emt 0:00:59] Successful Defense Black Wards off Qf7+} (23... Rxg1+ 24. Rxg1 Qe8 25. Qd1 $15) 24. Qf3 {[%emt 0:09:45]} Qf7 {[%emt 0:02:01]} 25. b3 {[%emt 0:01:41]} Qf6 {[%emt 0:02:19] Active counter play!} 26. Ng2 {[%emt 0:01:35]} Rg6 {[%emt 0:00:34] ...Rag8 would now be deadly.} 27. Ne2 $2 {[%emt 0:01:11]} (27. Ne1 $11 {and White is okay.}) 27... c6 $19 {[%emt 0:03:22]} 28. dxc6 {[%emt 0:00:29]} Bxc6 {[%emt 0:00:28]} 29. Rd1 {[%emt 0:02:06] [#]} Rxg2 $1 {[%emt 0:05:22]} 30. Qxg2 {[%emt 0:00:34]} f3 {[%emt 0:00:05]} 31. Qf1 {[%emt 0:00:15]} fxe2 {[%emt 0:00:08]} 32. Qxe2 {[%emt 0:00:05]} Qf4+ {[%emt 0:01:49]} 33. Qd2 {[%emt 0:02:08]} Rf8 {[%emt 0:04:41]} (33... Bxe4 $2 34. Qxf4 exf4 35. Rhe1 $18) (33... Qxe4 34. Qxd6 Re8 (34... Qxh1 $2 35. Qxe7+ Kg6 36. Qe6+ Kg7 37. Qxe5+ Kf7 38. Rxh1 $18) 35. Rhg1 $11) (33... Qxd2+ $19 {is more deadly.} 34. Rxd2 Nf5 (34... Bxe4 35. Re1 $17)) 34. Rhe1 {[%emt 0:00:18]} (34. Qxf4 $17 Rxf4 35. Rxd6) 34... Qxd2+ {[%emt 0:00:43]} (34... Qxf2 35. Qxd6 Ng6 36. Kb2 $17) (34... Bxe4 35. Qxf4 Rxf4 36. Rxd6 $17) 35. Rxd2 {[%emt 0:00:07]} Rf6 {[%emt 0:00:08]} 36. c4 {[%emt 0:00:32]} (36. Re3 $17) 36... Kg6 {[%emt 0:02:45]} 37. Re3 {[%emt 0:00:23]} Kf7 {[%emt 0:00:22]} 38. Kb2 {[%emt 0:00:16]} (38. Red3 $17) 38... a5 {[%emt 0:01:41]} 39. Ka3 {[%emt 0:03:19]} (39. Red3 $17) 39... Nc8 {[%emt 0:00:29]} 40. f3 {[%emt 0:01:03] [#]} (40. Rc2 $142) 40... Nb6 $1 {[%emt 0:01:00]} 41. Red3 {[%emt 0:31:05]} Ke7 {[%emt 0:33:18]} 42. Rg2 {[%emt 0:00:05]} Nd7 {[%emt 0:01:50]} 43. Rg7+ {[%emt 0:00:18]} Kf8 {[%emt 0:00:00]} 44. Rg3 {[%emt 0:00:00]} Nc5 {[%emt 0:00:00]} 45. Rd1 {[%emt 0:00:00]} Be8 {[%emt 0:00:00]} 46. Rdg1 {[%emt 0:00:00]} Bf7 {[%emt 0:00:00]} 47. Rd1 {[%emt 0:00:00]} Na6 {[%emt 0:00:00]} 48. Rf1 {[%emt 0:00:00]} Bg6 {[%emt 0:00:00]} 49. Rd1 {[%emt 0:00:00]} Nb4 {[%emt 0:00:00]} 50. c5 {[%emt 0:00:00]} dxc5 {[%emt 0:00:00]} 51. Rd7 {[%emt 0:00:00] [#]} (51. Rd8+ {is a better defense.} Ke7 52. Rc8) 51... Bxe4 $1 {[%emt 0:00:00] Black is clearly winning.} 52. Rd8+ {[%emt 0:00:00]} ({Inferior is} 52. fxe4 Rf2) (52. Rc7 Bc6) 52... Ke7 {[%emt 0:00:00]} 53. Rh8 {[%emt 0:00:00]} Bxf3 {[%emt 0:00:00] Weighted Error Value: White=0.36/Black=0.15 (very precise)   Mistake:       	White=8     	Black=2      Inaccurate:     	White=4     	Black=3      OK:         	White=12    	Black=17     Best:        	---       	Black=3      Strong:       	---       	Black=1} 0-1

[Event "Karel Janecek Open 2025"]
[Site "Prague"]
[Date "2025.03.04"]
[Round "6.4"]
[White "Nyzhnyk, Illya"]
[Black "Shagbazyan, Taron"]
[Result "1-0"]
[Annotator "TA"]
[ECO "B15"]
[WhiteElo "2569"]
[BlackElo "2428"]
[PlyCount "81"]
[EventDate "2025.02.21"]
[EventType "swiss"]
[EventCountry "CZE"]
[SourceTitle "playchess.com"]
[Source "ChessBase"]
[SourceQuality "1"]
[TimeControl "40/5400+30:1800+30"]

{[%evp 10,81,45,12,17,29,24,14,28,25,26,25,31,18,37,-4,-10,-12,22,22,29,0,0,0,37,48,57,0,0,-23,-19,-21,-13,-36,0,0,0,0,-15,0,0,0,0,0,0,0,0,-5,56,55,45,57,194,193,190,195,170,166,141,144,438,438,739,1154,1079,1031,1538,0,1103,935,1597,1488,2877,2556]} 1. e4 {[%emt 0:00:04]} c6 {[%emt 0:14:42]} 2. d4 {[%emt 0:00:18]} d5 {[%emt 0:00:08]} 3. Nc3 {[%emt 0:00:12]} dxe4 {[%emt 0:00:17]} 4. Nxe4 {[%emt 0:00:07]} Nf6 {[%emt 0:00:06]} 5. Nxf6+ {[%emt 0:00:37]} exf6 {[%emt 0:01:16]} 6. Be3 {[%emt 0:00:08]} Bd6 {[%emt 0:02:53] B15: Caro-Kann: 3 Nc3: 3...g6 and 3...dxe4 4 Nxe4 Nf6 5 Nxf6+ exf6.} 7. Bd3 {[%emt 0:00:31]} O-O {[%emt 0:03:48]} 8. Qf3 $5 {[%emt 0:00:05][%mdl 4] An interesting side line.} Qa5+ {[%emt 0:09:08] The position is equal.} 9. c3 {[%emt 0:02:59]} Re8 {[%emt 0:05:13]} 10. Ne2 {[%emt 0:00:27]} Nd7 {[%emt 0:14:14] A sharp opening} 11. Ng3 $146 {[%emt 0:09:20]} (11. O-O Nf8 12. Ng3 Qc7 13. h3 Ng6 14. Nf5 Bf8 15. h4 Be6 16. h5 Ne7 17. Ng3 {0-1 Lagno,K (2546)-Stefanova,A (2453) Online Olym Div Top-C rapid 2020 (1.3)}) 11... Nf8 {[%emt 0:02:56]} 12. h4 {[%emt 0:12:50]} Bxg3 {[%emt 0:03:38]} 13. Qxg3 {[%emt 0:00:13]} h5 {[%emt 0:00:33]} 14. O-O {[%emt 0:00:18]} Bf5 {[%emt 0:00:51]} 15. b4 {[%emt 0:00:33]} Qd5 {[%emt 0:00:08]} 16. Be2 {[%emt 0:00:06]} Be4 {[%emt 0:01:57]} 17. c4 {[%emt 0:00:40]} Qf5 {[%emt 0:00:47]} 18. Rfd1 {[%emt 0:00:11]} (18. a4 $1 $14) 18... a5 $11 {[%emt 0:01:06]} 19. b5 {[%emt 0:05:56]} cxb5 {[%emt 0:11:29]} 20. cxb5 {[%emt 0:00:07]} Rac8 {[%emt 0:00:22]} 21. Rac1 {[%emt 0:00:43]} Ne6 {[%emt 0:00:58] Inhibits Rc5.} 22. Rxc8 {[%emt 0:11:40]} Rxc8 {[%emt 0:00:08]} 23. f3 {[%emt 0:00:13]} Bc2 {[%emt 0:02:31]} 24. Rc1 {[%emt 0:00:25]} Rd8 {[%emt 0:01:38][%cal Oc2d3]} 25. Bc4 {[%emt 0:01:29]} Bd3 {[%emt 0:02:59] aiming for ...Bxc4.} 26. Bb3 {[%emt 0:00:30]} Bxb5 {[%emt 0:07:50]} 27. d5 {[%emt 0:00:12]} Nf8 {[%emt 0:04:41] White should prevent ...a4.} 28. Qc7 {[%emt 0:08:30][%csl LRa5,LRb7,LRd8] [#]} Qe5 $1 {[%emt 0:01:40]} 29. Qxe5 {[%emt 0:03:47]} (29. Qxd8 $2 {perishes.} Qxe3+ 30. Kh2 Qf4+ (30... Qxc1 $2 31. Qxa5 Bf1 32. Kg1 $19) 31. Kh3 Bd7+ $19 (31... Qxc1 $2 32. Qxa5 Qh1+ 33. Kg3 $19)) 29... fxe5 {[%emt 0:00:03]} 30. Bb6 {[%emt 0:01:45]} Re8 {[%emt 0:02:03]} (30... Ra8 $1 $14) 31. Bxa5 $18 {[%emt 0:00:23]} e4 {[%emt 0:00:13]} 32. fxe4 {[%emt 0:00:31]} Rxe4 {[%emt 0:00:07]} 33. Rc7 {[%emt 0:00:04]} Ba4 {[%emt 0:04:05]} 34. Rxb7 {[%emt 0:00:05] White is more active.} Nd7 {[%emt 0:00:03][%mdl 8192] Repels Rb8+} (34... Bxb3 $16 35. axb3 (35. Rxb3 Ra4 $14) 35... f6) 35. d6 {[%emt 0:00:41][%cal Bd5d6,Bd6d7][%mdl 32] And now Bxa4 would win.} Rxh4 {[%emt 0:01:59]} (35... Bc6 $142) 36. Bxa4 {[%emt 0:01:15]} Rxa4 {[%emt 0:00:07]} 37. Rxd7 {[%emt 0:00:28]} Rxa5 {[%emt 0:00:03] [#] KR-KR} 38. Rd8+ $1 {[%emt 0:00:05]} Kh7 {[%emt 0:00:09]} 39. d7 {[%emt 0:00:07] White is clearly winning.} Rd5 {[%emt 0:01:39]} 40. a4 {[%emt 0:00:06][%cal Ba2a4,Ba4a5][%mdl 32]} Kg6 {[%emt 0:01:04] [#]} 41. a5 $1 {[%emt 0:30:05][%mdl 512] Weighted Error Value: White=0.06 (flawless) /Black=0.74  Loses game:     	---       	Black=1      Mistake:       	White=1     	Black=3      Inaccurate:     	White=2     	Black=3      OK:         	White=14    	Black=12     Best:        	White=3     	Black=3} 1-0

[Event "Karel Janecek Open 2025"]
[Site "Prague"]
[Date "2025.03.04"]
[Round "6.5"]
[White "Kolb, Tobias"]
[Black "Grigoryan, Karen H."]
[Result "0-1"]
[Annotator "TA"]
[ECO "A84"]
[WhiteElo "2410"]
[BlackElo "2554"]
[PlyCount "166"]
[EventDate "2025.02.21"]
[EventType "swiss"]
[EventCountry "CZE"]
[SourceTitle "playchess.com"]
[Source "ChessBase"]
[SourceQuality "1"]
[TimeControl "40/5400+30:1800+30"]

{[%evp 9,166,14,38,16,23,15,27,37,47,21,32,33,30,31,31,31,24,20,32,22,24,20,104,102,115,115,115,99,116,-16,-10,-10,-13,-14,-18,-16,-16,-100,-106,-165,-161,-174,-169,-158,-158,-158,-158,-226,-222,-235,-212,-225,-135,-130,-140,-146,-141,-147,-113,-116,-108,-131,-98,-127,-128,-123,-79,-100,-100,-100,-57,-75,-66,-83,-87,-77,-68,-93,-60,-81,-66,-46,-50,-45,0,-55,0,-30,-14,-102,-102,-138,-80,-80,-78,-198,-216,-216,-216,-228,-231,-230,-231,-228,-229,-445,-377,-519,-249,-249,-412,-420,-401,-532,-363,-359,-366,-371,-356,-336,-308,-278,-248,-243,-237,-221,-120,-218,0,-15,-24,-18,-17,-117,-22,-207,-22,-22,-41,-104,-16,-88,-77,-4731,-4714,-12839,-10741,-8588,-5091,-29963,-29965,-29955,-1101,-29958,-29959,-29948,-29951,-6287,-6287]} 1. d4 {[%emt 0:00:03]} f5 {[%emt 0:01:29]} 2. Nf3 {[%emt 0:01:00]} Nf6 {[%emt 0:00:09]} 3. c4 {[%emt 0:00:13]} e6 {[%emt 0:00:33]} 4. g3 {[%emt 0:00:34]} Bb4+ {[%emt 0:00:14]} 5. Nbd2 {[%emt 0:04:53]} O-O {[%emt 0:00:48]} 6. a3 {[%emt 0:00:08] A84: Dutch Defence: 2 c4 Miscellaneous.} Bxd2+ {[%emt 0:00:08]} 7. Bxd2 {[%emt 0:07:03]} d6 {[%emt 0:00:48]} 8. Bg2 {[%emt 0:00:27] White has an edge.} Qe7 {[%emt 0:01:43]} 9. Bc3 {[%emt 0:03:36]} Ne4 {[%emt 0:01:28]} 10. Qc2 {[%emt 0:00:14]} Nd7 {[%emt 0:01:09]} 11. b4 {[%emt 0:06:04]} Nxc3 {[%emt 0:00:13]} 12. Qxc3 {[%emt 0:00:03]} e5 {[%emt 0:00:14]} 13. dxe5 {[%emt 0:00:51]} dxe5 {[%emt 0:00:41][%cal Bd6e5,Be5e4][%mdl 32]} 14. O-O {[%emt 0:14:05][%cal Oe2e4]} e4 {[%emt 0:00:19]} 15. Nd4 {[%emt 0:00:16]} f4 $146 {[%emt 0:03:03]} (15... Nf6 $11) (15... Nf6 16. c5 Nd5 17. Qb3 c6 18. f3 Bd7 19. fxe4 fxe4 20. Nb5 Be6 21. Nd6 Nf4 {½-½ Platt,J-Milner Barry,P Clare Benedict Cup-02 1955 (3.3)}) 16. gxf4 $1 $16 {[%emt 0:04:27]} Rxf4 {[%emt 0:00:09]} 17. Qg3 {[%emt 0:03:15]} Rf7 {[%emt 0:06:07]} 18. Qxc7 {[%emt 0:18:38]} Qf6 {[%emt 0:00:14]} 19. Bxe4 {[%emt 0:05:31]} (19. Nb5 $1 $16 {[%cal Rb5d6] And now Nd6! would win.} Ne5 20. Qc5) 19... Nb6 $11 {[%emt 0:11:47][%cal Bd7b6,Bb6c4,Bc4e5][%mdl 32]} 20. Qc5 {[%emt 0:00:06]} Bh3 {[%emt 0:00:23][%cal Oa8e8]} 21. Nf3 $1 {[%emt 0:09:42]} Bxf1 {[%emt 0:03:37]} 22. Rxf1 {[%emt 0:00:03]} Rc8 $36 {[%emt 0:01:09][%mdl 2048] Black has good play.} 23. Qe3 {[%emt 0:01:47]} (23. Qh5 g6 (23... Rxc4 $2 24. Bxh7+ Kf8 25. Ne5 $18) 24. Qg5 Rxc4 25. Qxf6 Rxf6 26. Bxb7 Rc2 $15) (23. Qe5 $11) 23... Nxc4 $17 {[%emt 0:03:45]} 24. Qd3 {[%emt 0:00:09]} (24. Qxa7 $17 Kh8 25. Rd1) 24... Kh8 $19 {[%emt 0:01:05]} 25. Rc1 {[%emt 0:06:31]} b5 {[%emt 0:01:26]} 26. Qd5 {[%emt 0:01:10]} Re8 {[%emt 0:05:00]} 27. Bd3 {[%emt 0:04:26]} Ne5 $1 {[%emt 0:04:37]} (27... Nxa3 28. Rc6 Qf4 29. Qh5 $11) 28. Qxb5 {[%emt 0:03:53]} (28. Nxe5 $17 {was worth a try.} Qg5+ (28... Qxe5 $2 29. Qxe5 Ref8 30. Qe4 $18) 29. Kh1 Qxc1+ 30. Kg2 Qg5+ 31. Kh1 Qxe5 (31... Rxe5 32. Qa8+) (31... Qc1+ 32. Kg2 $17) 32. Qxf7) 28... Rff8 {[%emt 0:00:41]} 29. Be4 {[%emt 0:01:29]} Qf4 {[%emt 0:01:18]} 30. Rc5 {[%emt 0:01:00][%cal Rc5e5]} Qxe4 {[%emt 0:04:14]} 31. Rxe5 {[%emt 0:00:04]} Qg4+ {[%emt 0:00:18] Black attacks} 32. Kf1 {[%emt 0:01:03]} Rd8 {[%emt 0:00:08]} 33. Rd5 {[%emt 0:00:44]} Qe4 {[%emt 0:00:23]} 34. Rxd8 {[%emt 0:01:12]} Rxd8 $17 {[%emt 0:00:06][%mdl 4096] Endgame} 35. Qe5 {[%emt 0:00:36]} Qc6 {[%emt 0:05:13][%mdl 1024] Black has strong compensation.} 36. Kg2 {[%emt 0:01:19]} Re8 {[%emt 0:00:20]} 37. Qf5 {[%emt 0:00:19]} a6 {[%emt 0:03:54]} (37... Rxe2 38. Qf8#) 38. h3 {[%emt 0:00:47]} h6 {[%emt 0:00:30]} (38... Rxe2 39. Qf8#) 39. Qd3 {[%emt 0:00:27]} Qe6 {[%emt 0:01:47]} 40. Nd4 {[%emt 0:01:25]} Qd5+ {[%emt 0:00:16]} 41. Kh2 {[%emt 0:06:15]} Rd8 {[%emt 0:05:02]} 42. e3 {[%emt 0:00:19]} Rf8 {[%emt 0:00:41]} 43. Qc2 {[%emt 0:03:48]} Qe5+ {[%emt 0:01:39]} 44. Kg2 {[%emt 0:00:18]} Qg5+ $1 {[%emt 0:00:05]} 45. Kh2 {[%emt 0:02:13]} Qh4 {[%emt 0:07:57]} 46. Kg2 {[%emt 0:01:06]} Qg5+ {[%emt 0:01:13]} 47. Kh2 {[%emt 0:00:06]} Qe5+ {[%emt 0:00:09]} 48. Kg2 $1 {[%emt 0:00:12]} Rf6 {[%emt 0:00:19]} 49. Ne2 {[%emt 0:09:11]} (49. h4 $1 $11) 49... Qd5+ {[%emt 0:01:00]} 50. e4 {[%emt 0:01:27]} Qg5+ {[%emt 0:00:07]} (50... Rc6 $142 $1 51. exd5 Rxc2) 51. Ng3 {[%emt 0:00:06]} h5 {[%emt 0:04:15] Black has more active pieces.} 52. Qc8+ {[%emt 0:06:43]} (52. h4 $17 Qxh4 53. e5) 52... Kh7 $19 {[%emt 0:00:29]} 53. h4 {[%emt 0:00:15]} Qxh4 {[%emt 0:01:04]} 54. e5 {[%emt 0:00:05]} Rg6 {[%emt 0:01:27]} 55. Qf5 {[%emt 0:02:30] Wards off Qf4} Qg4 {[%emt 0:00:35]} 56. Qxg4 {[%emt 0:00:03]} Rxg4 {[%emt 0:00:06] KR-KN} 57. Kf3 $2 {[%emt 0:00:32]} (57. f3 Rc4 58. Nxh5) 57... g6 {[%emt 0:03:13]} 58. Ne4 {[%emt 0:00:03]} Kg7 {[%emt 0:00:11]} (58... Rg1 $142 {and ...h4 should not be overlooked} 59. Nf6+ Kg7) 59. a4 {[%emt 0:01:46]} Rg1 {[%emt 0:00:16]} 60. b5 {[%emt 0:01:01]} a5 {[%emt 0:00:44]} 61. Nd6 {[%emt 0:01:01]} h4 {[%emt 0:04:07]} 62. b6 {[%emt 0:00:23]} h3 {[%emt 0:00:11]} 63. b7 {[%emt 0:00:04]} h2 {[%emt 0:00:11]} 64. b8=Q {[%emt 0:00:28]} h1=Q+ {[%emt 0:00:07] KQR-KQN} 65. Ke3 {[%emt 0:00:37]} Re1+ {[%emt 0:00:06]} 66. Kd4 {[%emt 0:00:26]} Rd1+ {[%emt 0:00:16]} 67. Kc5 {[%emt 0:00:05]} Qd5+ {[%emt 0:04:07]} 68. Kb6 {[%emt 0:00:03]} Rd4 $2 {[%emt 0:01:33]} (68... Qxe5 $2 69. Ne8+ $18) (68... Qb3+ $1 $19 69. Nb5 Qe6+ (69... Qxa4 $2 70. Qc7+ Kh6 71. Qf7 $19) 70. Kxa5 Rd7) 69. Qc7+ {[%emt 0:02:19]} Kh6 {[%emt 0:00:05]} 70. Qe7 $1 {[%emt 0:00:28]} Rf4 {[%emt 0:01:52]} 71. Nb5 {[%emt 0:00:45]} (71. Ka6 $11) 71... Rf7 {[%emt 0:01:24]} (71... Rxf2 $2 72. Qh4+ (72. Kxa5 $2 Rf4 $19) 72... Kg7 73. Qxf2 $18) (71... Qa2 $17 72. Qc5 Rxf2 (72... Rxa4 73. Qe3+ g5 74. e6 $11) (72... Qxf2 73. Qxf2 Rxf2 74. Kxa5 $17) 73. Qe3+ Kh7) 72. Qh4+ $11 {[%emt 0:00:04]} Kg7 {[%emt 0:00:04]} 73. Nd6 $1 {[%emt 0:01:15]} Qb3+ {[%emt 0:01:31]} 74. Ka6 $1 {[%emt 0:00:08]} Rf8 {[%emt 0:00:30]} ({Better is} 74... Qd3+ $17 75. Qc4 Qxc4+ 76. Nxc4 Rf4 (76... Rxf2 $2 77. Kxa5 g5 78. Kb6 $19)) 75. Qe7+ {[%emt 0:00:16]} (75. Qe4 $1 $11 {remains equal.}) 75... Kg8 $17 {[%emt 0:00:04] Chess con chili.} 76. Ne8 $2 {[%emt 0:01:18][%mdl 8192] [#]} (76. Ka7 $17) 76... Qc4+ $1 $19 {[%emt 0:02:17]} (76... Qxa4 77. Qg7#) 77. Kxa5 {[%emt 0:00:06]} Rf7 $1 {[%emt 0:00:11]} 78. Nf6+ {[%emt 0:00:24] [#]} Kg7 $1 {[%emt 0:00:04]} 79. Qd6 {[%emt 0:01:47]} Ra7+ {[%emt 0:00:08]} 80. Kb6 {[%emt 0:00:03]} Ra6+ {[%emt 0:00:05]} ({Not} 80... Rxa4 81. Qe7+ Kh6 82. Ng4+ Qxg4 83. Qf8+ Kh7 84. Qe7+ Kg8 85. Qe8+ Kg7 86. Qe7+ Kg8 87. Qe8+ Kg7 88. Qe7+ Kg8 $11) 81. Kb7 {[%emt 0:00:11]} Rxd6 {[%emt 0:00:06]} 82. Ne8+ {[%emt 0:00:01]} Kf8 {[%emt 0:00:07]} 83. Nxd6 {[%emt 0:00:09]} Qxa4 {[%emt 0:00:05] Weighted Error Value: White=0.21 (precise) /Black=0.18 (very precise)   Loses game:     	White=1     	---        Missed win:     	---       	Black=2      Mistake:       	White=9     	Black=5      Inaccurate:     	White=5     	Black=5      OK:         	White=21    	Black=24     Best:        	White=15    	Black=11     Strong:       	White=6     	Black=3} 0-1